[Event "*** Titled Tuesday Blitz"]
[Site "Chess.com"]
[Date "2021.04.20"]
[Round "4"]
[White "erdni1993"]
[Black "Ze-Pequeno"]
[Result "1-0"]
[WhiteElo "2425"]
[BlackElo "2240"]
[TimeControl "180+1"]
[EndTime "10:39:56 PDT"]
[Termination "erdni1993 won on time"]

1. e4 {[%clk 0:03:00.9]} 1... e5 {[%clk 0:02:59.3]} 2. Nf3 {[%clk 0:03:01.1]}
2... Nc6 {[%clk 0:02:59.3]} 3. Bb5 {[%clk 0:03:01.6]} 3... a6 {[%clk 0:02:59.3]}
4. Ba4 {[%clk 0:03:00.2]} 4... Nf6 {[%clk 0:02:59.3]} 5. O-O {[%clk 0:03:00.4]}
5... Be7 {[%clk 0:02:59.2]} 6. Re1 {[%clk 0:02:59.8]} 6... b5 {[%clk 0:02:58.9]}
7. Bb3 {[%clk 0:02:59.4]} 7... d6 {[%clk 0:02:59.8]} 8. h3 {[%clk 0:02:58.8]}
8... O-O {[%clk 0:02:59.5]} 9. c3 {[%clk 0:02:58.9]} 9... Nb8 {[%clk 0:02:58]}
10. d4 {[%clk 0:02:58.7]} 10... Nbd7 {[%clk 0:02:58.2]} 11. Nbd2 {[%clk
0:02:58.7]} 11... Bb7 {[%clk 0:02:58.1]} 12. a4 {[%clk 0:02:57.2]} 12... c5
{[%clk 0:02:39.9]} 13. axb5 {[%clk 0:02:46.9]} 13... axb5 {[%clk 0:02:38]} 14.
Rxa8 {[%clk 0:02:47.8]} 14... Bxa8 {[%clk 0:02:38.2]} 15. Bc2 {[%clk 0:02:40.6]}
15... cxd4 {[%clk 0:02:20.1]} 16. cxd4 {[%clk 0:02:40.4]} 16... Qb6 {[%clk
0:02:19.7]} 17. Nf1 {[%clk 0:02:32.2]} 17... Rc8 {[%clk 0:02:15.3]} 18. Be3
{[%clk 0:02:23]} 18... Qa5 {[%clk 0:02:01.3]} 19. Ng3 {[%clk 0:02:11]} 19... g6
{[%clk 0:01:46.6]} 20. dxe5 {[%clk 0:01:50.9]} 20... dxe5 {[%clk 0:01:41.2]} 21.
Bb3 {[%clk 0:01:41.9]} 21... Bb4 {[%clk 0:00:44.2]} 22. Rf1 {[%clk 0:01:31.4]}
22... Rf8 {[%clk 0:00:23.6]} 23. Bh6 {[%clk 0:01:22.8]} 23... Re8 {[%clk
0:00:18.5]} 24. Ng5 {[%clk 0:01:22.1]} 24... Re7 {[%clk 0:00:19]} 25. Qc2 {[%clk
0:01:18.9]} 25... Bb7 {[%clk 0:00:16.2]} 26. Rd1 {[%clk 0:01:01.6]} 26... Nc5
{[%clk 0:00:15.3]} 27. f3 {[%clk 0:00:37.2]} 27... Nxb3 {[%clk 0:00:13.7]} 28.
Qxb3 {[%clk 0:00:36.5]} 28... Bc5+ {[%clk 0:00:11.4]} 29. Kh2 {[%clk 0:00:35.1]}
29... Bd4 {[%clk 0:00:11.6]} 30. f4 {[%clk 0:00:28.3]} 30... Qc7 {[%clk
0:00:09.8]} 31. f5 {[%clk 0:00:24.1]} 31... Qc8 {[%clk 0:00:07]} 32. Qb4 {[%clk
0:00:22.1]} 32... Rd7 {[%clk 0:00:04.9]} 33. fxg6 {[%clk 0:00:20.5]} 33... hxg6
{[%clk 0:00:04.7]} 34. Qxb5 {[%clk 0:00:20.3]} 34... Bc6 {[%clk 0:00:04.1]} 35.
Qc4 {[%clk 0:00:19.3]} 35... Nh7 {[%clk 0:00:03]} 36. Rc1 {[%clk 0:00:16.3]}
36... Rc7 {[%clk 0:00:02.7]} 37. Qa2 {[%clk 0:00:13.3]} 37... Nxg5 {[%clk
0:00:02.4]} 38. Bxg5 {[%clk 0:00:13.9]} 38... Bd7 {[%clk 0:00:02.4]} 39. Rxc7
{[%clk 0:00:13.4]} 39... Qxc7 {[%clk 0:00:03.3]} 40. Qa8+ {[%clk 0:00:12.2]}
40... Kh7 {[%clk 0:00:03.7]} 41. Qd5 {[%clk 0:00:12.2]} 41... Be6 {[%clk
0:00:03.4]} 42. Qb5 {[%clk 0:00:11.8]} 42... Qc2 {[%clk 0:00:02.6]} 43. Qe2
{[%clk 0:00:11]} 43... Qxb2 {[%clk 0:00:02.5]} 44. Qxb2 {[%clk 0:00:10.3]} 44...
Bxb2 {[%clk 0:00:03.4]} 45. Ne2 {[%clk 0:00:10.6]} 45... Ba1 {[%clk 0:00:03.1]}
46. Be3 {[%clk 0:00:11.1]} 46... Bc4 {[%clk 0:00:03.1]} 47. Ng3 {[%clk
0:00:10.2]} 47... Bd3 {[%clk 0:00:03.2]} 48. Kg1 {[%clk 0:00:09.2]} 48... f5
{[%clk 0:00:02.7]} 49. Kf2 {[%clk 0:00:10.1]} 49... f4 {[%clk 0:00:02.8]} 50. h4
{[%clk 0:00:09]} 50... fxe3+ {[%clk 0:00:03.2]} 51. Kxe3 {[%clk 0:00:09.9]}
51... Bb1 {[%clk 0:00:03.7]} 52. h5 {[%clk 0:00:09.7]} 52... Bd4+ {[%clk
0:00:04.6]} 53. Kf3 {[%clk 0:00:10.2]} 53... gxh5 {[%clk 0:00:05]} 54. Nxh5
{[%clk 0:00:10.3]} 54... Kg6 {[%clk 0:00:05.9]} 55. Ng3 {[%clk 0:00:10.5]} 55...
Kg5 {[%clk 0:00:06.8]} 56. Nf5 {[%clk 0:00:10.4]} 56... Bd3 {[%clk 0:00:07.7]}
57. g3 {[%clk 0:00:10.3]} 57... Bc3 {[%clk 0:00:07.7]} 58. Nd6 {[%clk
0:00:10.3]} 58... Ba6 {[%clk 0:00:07.4]} 59. Nf7+ {[%clk 0:00:10.3]} 59... Kf6
{[%clk 0:00:07.1]} 60. Nh6 {[%clk 0:00:10.2]} 60... Bb4 {[%clk 0:00:07.2]} 61.
Ng4+ {[%clk 0:00:10.6]} 61... Ke6 {[%clk 0:00:08.1]} 62. Ne3 {[%clk 0:00:11]}
62... Bb5 {[%clk 0:00:08]} 63. g4 {[%clk 0:00:11.1]} 63... Be7 {[%clk
0:00:08.3]} 64. Nf5 {[%clk 0:00:10.8]} 64... Bg5 {[%clk 0:00:08.4]} 65. Ng3
{[%clk 0:00:11.3]} 65... Bf4 {[%clk 0:00:08.3]} 66. Nf5 {[%clk 0:00:12.2]} 66...
Bg5 {[%clk 0:00:08.3]} 67. Ng3 {[%clk 0:00:12.2]} 67... Ba4 {[%clk 0:00:09.2]}
68. Nh5 {[%clk 0:00:12.7]} 68... Bd1+ {[%clk 0:00:07.6]} 69. Kg3 {[%clk
0:00:12.3]} 69... Be2 {[%clk 0:00:07.3]} 70. Ng7+ {[%clk 0:00:12.3]} 70... Kf6
{[%clk 0:00:06.8]} 71. Nf5 {[%clk 0:00:12.7]} 71... Bf4+ {[%clk 0:00:06.7]} 72.
Kh4 {[%clk 0:00:13.1]} 72... Bd3 {[%clk 0:00:05.5]} 73. Nd6 {[%clk 0:00:13.1]}
73... Ke6 {[%clk 0:00:04.8]} 74. Nf5 {[%clk 0:00:12.4]} 74... Bxe4 {[%clk
0:00:04.7]} 75. Ng7+ {[%clk 0:00:12.9]} 75... Kf6 {[%clk 0:00:04.3]} 76. Nh5+
{[%clk 0:00:13.8]} 76... Kg6 {[%clk 0:00:03.2]} 77. Kh3 {[%clk 0:00:12.5]} 77...
Kg5 {[%clk 0:00:02.8]} 78. Ng7 {[%clk 0:00:11.1]} 78... Bf3 {[%clk 0:00:01.5]}
79. Ne6+ {[%clk 0:00:10.9]} 79... Kf6 {[%clk 0:00:01.9]} 80. Nc5 {[%clk
0:00:11.1]} 80... Be3 {[%clk 0:00:01.2]} 81. Nd3 {[%clk 0:00:10.1]} 1-0

[Event "*** Titled Tuesday Blitz"]
[Site "Chess.com"]
[Date "2021.04.20"]
[Round "5"]
[White "Jospem"]
[Black "maximych26"]
[Result "1-0"]
[WhiteElo "2962"]
[BlackElo "2274"]
[TimeControl "180+1"]
[EndTime "10:49:59 PDT"]
[Termination "Jospem won by resignation"]

1. e4 {[%clk 0:03:00.9]} 1... c6 {[%clk 0:02:59.2]} 2. Nf3 {[%clk 0:02:59.5]}
2... d5 {[%clk 0:02:59.1]} 3. d3 {[%clk 0:03:00.3]} 3... dxe4 {[%clk 0:02:57.9]}
4. dxe4 {[%clk 0:03:01.2]} 4... Qxd1+ {[%clk 0:02:57.7]} 5. Kxd1 {[%clk
0:03:01.2]} 5... Bg4 {[%clk 0:02:58.2]} 6. Be2 {[%clk 0:03:00.2]} 6... Nd7
{[%clk 0:02:57.7]} 7. Ne1 {[%clk 0:03:00.1]} 7... Bxe2+ {[%clk 0:02:56.1]} 8.
Kxe2 {[%clk 0:03:01]} 8... O-O-O {[%clk 0:02:55.7]} 9. Nd3 {[%clk 0:03:00.8]}
9... e5 {[%clk 0:02:51]} 10. Be3 {[%clk 0:02:58.6]} 10... b6 {[%clk 0:02:49.8]}
11. a4 {[%clk 0:02:57.8]} 11... f6 {[%clk 0:02:49.4]} 12. Nd2 {[%clk 0:02:56.2]}
12... Kb7 {[%clk 0:02:40.7]} 13. a5 {[%clk 0:02:56.2]} 13... b5 {[%clk
0:02:34.6]} 14. a6+ {[%clk 0:02:55.3]} 14... Kb8 {[%clk 0:02:34.6]} 15. c4
{[%clk 0:02:56.2]} 15... bxc4 {[%clk 0:02:20.1]} 16. Nxc4 {[%clk 0:02:55.7]}
16... Nb6 {[%clk 0:02:13.8]} 17. Bxb6 {[%clk 0:02:42.3]} 17... axb6 {[%clk
0:02:12.5]} 18. a7+ {[%clk 0:02:43.2]} 18... Kb7 {[%clk 0:02:06.6]} 19. Nxb6
{[%clk 0:02:44.1]} 19... Kxb6 {[%clk 0:02:02.4]} 20. a8=Q {[%clk 0:02:43.3]}
20... Rxa8 {[%clk 0:02:02.9]} 21. Rxa8 {[%clk 0:02:44]} 21... Bd6 {[%clk
0:02:02.2]} 22. Rha1 {[%clk 0:02:41.1]} 22... h5 {[%clk 0:02:00.7]} 23. R1a6+
{[%clk 0:02:40.1]} 23... Kb7 {[%clk 0:01:59.8]} 24. R6a7+ {[%clk 0:02:40.4]}
24... Kb6 {[%clk 0:01:59.6]} 25. Rxg7 {[%clk 0:02:41.1]} 1-0

[Event "*** Titled Tuesday Blitz"]
[Site "Chess.com"]
[Date "2021.04.20"]
[Round "5"]
[White "RenarddesSurfaces"]
[Black "TheRealPeakyBlinder"]
[Result "0-1"]
[WhiteElo "2443"]
[BlackElo "2638"]
[TimeControl "180+1"]
[EndTime "10:50:44 PDT"]
[Termination "TheRealPeakyBlinder won by resignation"]

1. e4 {[%clk 0:03:00.9]} 1... e5 {[%clk 0:02:56.8]} 2. Nf3 {[%clk 0:03:00.8]}
2... Nc6 {[%clk 0:02:56.1]} 3. d4 {[%clk 0:03:00.7]} 3... exd4 {[%clk
0:02:56.2]} 4. Nxd4 {[%clk 0:03:01.6]} 4... Nf6 {[%clk 0:02:56.4]} 5. Nxc6
{[%clk 0:03:01.4]} 5... bxc6 {[%clk 0:02:54.5]} 6. Nc3 {[%clk 0:03:02.3]} 6...
Bb4 {[%clk 0:02:43.9]} 7. Bd3 {[%clk 0:03:01.6]} 7... O-O {[%clk 0:02:43.4]} 8.
O-O {[%clk 0:03:01.4]} 8... Re8 {[%clk 0:02:44]} 9. Bg5 {[%clk 0:02:59.5]} 9...
Rb8 {[%clk 0:02:44.1]} 10. f4 {[%clk 0:02:53.2]} 10... Be7 {[%clk 0:02:40.1]}
11. e5 {[%clk 0:02:48.9]} 11... Nd5 {[%clk 0:02:40.2]} 12. Qh5 {[%clk
0:02:41.6]} 12... g6 {[%clk 0:02:31.1]} 13. Bxe7 {[%clk 0:02:36.1]} 13... Qxe7
{[%clk 0:02:29.6]} 14. Qh6 {[%clk 0:02:26]} 14... Ne3 {[%clk 0:02:03.1]} 15. Ne4
{[%clk 0:02:17.5]} 15... Ng4 {[%clk 0:01:52.3]} 16. Qh3 {[%clk 0:01:56.3]} 16...
d5 {[%clk 0:01:52.4]} 17. Ng5 {[%clk 0:01:46.5]} 17... Qc5+ {[%clk 0:01:49.2]}
0-1

[Event "*** Titled Tuesday Blitz"]
[Site "Chess.com"]
[Date "2021.04.20"]
[Round "5"]
[White "GUST_b"]
[Black "Anna_ChessMate"]
[Result "0-1"]
[WhiteElo "2371"]
[BlackElo "2556"]
[TimeControl "180+1"]
[EndTime "10:51:04 PDT"]
[Termination "Anna_ChessMate won by resignation"]

1. Nf3 {[%clk 0:03:00.9]} 1... d5 {[%clk 0:02:59.4]} 2. g3 {[%clk 0:03:00.6]}
2... Nf6 {[%clk 0:02:59.9]} 3. Bg2 {[%clk 0:03:00.8]} 3... g6 {[%clk 0:03:00.6]}
4. O-O {[%clk 0:03:00.2]} 4... Bg7 {[%clk 0:03:01.3]} 5. d4 {[%clk 0:02:59.6]}
5... O-O {[%clk 0:03:01.7]} 6. c4 {[%clk 0:03:00.2]} 6... c6 {[%clk 0:02:54]} 7.
a4 {[%clk 0:03:00.3]} 7... Re8 {[%clk 0:02:53.2]} 8. cxd5 {[%clk 0:02:49.8]}
8... cxd5 {[%clk 0:02:53.1]} 9. Qb3 {[%clk 0:02:49]} 9... Ne4 {[%clk 0:02:51.9]}
10. Nc3 {[%clk 0:02:47]} 10... Nc6 {[%clk 0:02:43.5]} 11. Nxe4 {[%clk
0:02:34.1]} 11... dxe4 {[%clk 0:02:44.4]} 12. Ng5 {[%clk 0:02:33.7]} 12... Nxd4
{[%clk 0:02:37.2]} 13. Qxf7+ {[%clk 0:02:30.8]} 13... Kh8 {[%clk 0:02:37.8]} 14.
Qc4 {[%clk 0:02:14.5]} 14... Rf8 {[%clk 0:02:28.2]} 15. Nf7+ {[%clk 0:02:07.9]}
15... Rxf7 {[%clk 0:02:28.2]} 16. Qxf7 {[%clk 0:02:08.8]} 16... Be6 {[%clk
0:02:28.3]} 17. Qxe6 {[%clk 0:02:03.4]} 17... Nxe6 {[%clk 0:02:28.3]} 18. Bxe4
{[%clk 0:02:04]} 18... Nc5 {[%clk 0:02:11.8]} 19. Bf3 {[%clk 0:02:01.9]} 19...
a5 {[%clk 0:02:11.5]} 20. Be3 {[%clk 0:01:52.5]} 20... Rc8 {[%clk 0:02:10.2]}
21. Rfd1 {[%clk 0:01:49.5]} 21... Qf8 {[%clk 0:02:02.7]} 22. Rac1 {[%clk
0:01:46.8]} 22... b6 {[%clk 0:02:02.7]} 23. Bxc5 {[%clk 0:01:41.7]} 23... Rxc5
{[%clk 0:02:00.3]} 24. Rxc5 {[%clk 0:01:40.5]} 24... bxc5 {[%clk 0:02:01.2]} 25.
b3 {[%clk 0:01:39.7]} 25... Bd4 {[%clk 0:02:01.1]} 26. e3 {[%clk 0:01:38.2]}
26... Qxf3 {[%clk 0:02:00.8]} 0-1

[Event "*** Titled Tuesday Blitz"]
[Site "Chess.com"]
[Date "2021.04.20"]
[Round "5"]
[White "MateusViageiro"]
[Black "GAusal"]
[Result "0-1"]
[WhiteElo "2277"]
[BlackElo "2024"]
[TimeControl "180+1"]
[EndTime "10:51:28 PDT"]
[Termination "GAusal won by checkmate"]

1. Nf3 {[%clk 0:03:00.9]} 1... d5 {[%clk 0:02:52]} 2. g3 {[%clk 0:02:59.4]} 2...
c5 {[%clk 0:02:40.2]} 3. Bg2 {[%clk 0:02:59.9]} 3... Nc6 {[%clk 0:02:37.4]} 4.
O-O {[%clk 0:02:59]} 4... e5 {[%clk 0:02:31.6]} 5. d3 {[%clk 0:02:58.6]} 5...
Bd6 {[%clk 0:02:26.9]} 6. Nbd2 {[%clk 0:02:58.6]} 6... Be6 {[%clk 0:02:27.1]} 7.
c4 {[%clk 0:02:57.8]} 7... Nf6 {[%clk 0:02:23.2]} 8. cxd5 {[%clk 0:02:57.1]}
8... Nxd5 {[%clk 0:02:17.7]} 9. Ne4 {[%clk 0:02:49.6]} 9... f6 {[%clk
0:02:14.3]} 10. Nxd6+ {[%clk 0:02:47.4]} 10... Qxd6 {[%clk 0:02:14.3]} 11. Bd2
{[%clk 0:02:47.4]} 11... O-O {[%clk 0:02:09.2]} 12. Rc1 {[%clk 0:02:46.8]} 12...
b6 {[%clk 0:02:08.6]} 13. a3 {[%clk 0:02:46]} 13... a5 {[%clk 0:02:04]} 14. Qa4
{[%clk 0:02:43.2]} 14... Nd4 {[%clk 0:02:03.1]} 15. Nxd4 {[%clk 0:02:41.1]}
15... exd4 {[%clk 0:01:57.5]} 16. Rfe1 {[%clk 0:02:32]} 16... Rad8 {[%clk
0:01:52.3]} 17. Rcd1 {[%clk 0:02:28.8]} 17... Qe5 {[%clk 0:01:47]} 18. Qc2
{[%clk 0:02:27.9]} 18... Qh5 {[%clk 0:01:45.6]} 19. h4 {[%clk 0:02:25.5]} 19...
g5 {[%clk 0:01:40.8]} 20. hxg5 {[%clk 0:02:24.2]} 20... fxg5 {[%clk 0:01:37.2]}
21. e3 {[%clk 0:02:20.4]} 21... Rxf2 {[%clk 0:01:31.6]} 22. Kxf2 {[%clk
0:02:17.7]} 22... Qh2 {[%clk 0:01:25.9]} 23. Rg1 {[%clk 0:02:12.7]} 23... Rf8+
{[%clk 0:01:21.2]} 24. Ke2 {[%clk 0:02:09]} 24... Bg4+ {[%clk 0:01:16.2]} 25.
Ke1 {[%clk 0:02:08.4]} 25... Qxg3# {[%clk 0:01:11]} 0-1

[Event "*** Titled Tuesday Blitz"]
[Site "Chess.com"]
[Date "2021.04.20"]
[Round "5"]
[White "Harald_Schmidt"]
[Black "LawrenceTrent"]
[Result "1-0"]
[WhiteElo "2409"]
[BlackElo "2558"]
[TimeControl "180+1"]
[EndTime "10:51:41 PDT"]
[Termination "Harald_Schmidt won by resignation"]

1. e4 {[%clk 0:03:00.9]} 1... g6 {[%clk 0:03:00.9]} 2. h4 {[%clk 0:02:59.3]}
2... Nf6 {[%clk 0:03:01.8]} 3. e5 {[%clk 0:02:58.4]} 3... Nd5 {[%clk 0:03:02.4]}
4. h5 {[%clk 0:02:58.3]} 4... Bg7 {[%clk 0:03:03]} 5. d4 {[%clk 0:02:58]} 5...
d6 {[%clk 0:03:03.6]} 6. h6 {[%clk 0:02:56]} 6... Bf8 {[%clk 0:03:03.6]} 7. Nf3
{[%clk 0:02:50]} 7... Nc6 {[%clk 0:03:00.1]} 8. Bc4 {[%clk 0:02:30.5]} 8... Nb6
{[%clk 0:02:54.7]} 9. Bb5 {[%clk 0:02:24.3]} 9... dxe5 {[%clk 0:02:52.7]} 10.
Nxe5 {[%clk 0:02:23.7]} 10... Bd7 {[%clk 0:02:51.8]} 11. Nxc6 {[%clk 0:02:15.2]}
11... Bxc6 {[%clk 0:02:50.8]} 12. Bxc6+ {[%clk 0:02:14.9]} 12... bxc6 {[%clk
0:02:50.6]} 13. Be3 {[%clk 0:02:12.9]} 13... e6 {[%clk 0:02:50.5]} 14. Nc3
{[%clk 0:02:10.4]} 14... Bb4 {[%clk 0:02:30.5]} 15. Qf3 {[%clk 0:02:06.5]} 15...
Nd5 {[%clk 0:02:18.4]} 16. Bd2 {[%clk 0:02:01.4]} 16... c5 {[%clk 0:02:15.7]}
17. dxc5 {[%clk 0:01:58.2]} 17... Bxc5 {[%clk 0:02:08.8]} 18. O-O-O {[%clk
0:01:55.6]} 18... Qf6 {[%clk 0:02:00]} 19. Nxd5 {[%clk 0:01:50]} 19... Qxf3
{[%clk 0:02:00]} 20. Nxc7+ {[%clk 0:01:49.7]} 20... Kd7 {[%clk 0:02:00.4]} 21.
Ba5+ {[%clk 0:01:44.5]} 21... Qxd1+ {[%clk 0:02:00]} 22. Rxd1+ {[%clk
0:01:43.4]} 22... Kc6 {[%clk 0:02:00.9]} 23. Na6 {[%clk 0:01:40.3]} 23... Bxf2
{[%clk 0:01:53.6]} 24. a4 {[%clk 0:01:38.5]} 24... Be3+ {[%clk 0:01:49]} 25. Kb1
{[%clk 0:01:37.6]} 25... Bc5 {[%clk 0:01:46.4]} 26. b4 {[%clk 0:01:33.6]} 26...
Be7 {[%clk 0:01:42.2]} 27. b5+ {[%clk 0:01:31.7]} 27... Kb7 {[%clk 0:01:39.5]}
28. Rd7+ {[%clk 0:01:31]} 28... Kc8 {[%clk 0:01:39.8]} 29. Rxe7 {[%clk
0:01:30.9]} 1-0

[Event "*** Titled Tuesday Blitz"]
[Site "Chess.com"]
[Date "2021.04.20"]
[Round "5"]
[White "Jungle_Jaguar"]
[Black "Mikasinski"]
[Result "0-1"]
[WhiteElo "2711"]
[BlackElo "2525"]
[TimeControl "180+1"]
[EndTime "10:52:06 PDT"]
[Termination "Mikasinski won by resignation"]

1. e4 {[%clk 0:03:00.9]} 1... c5 {[%clk 0:02:59.7]} 2. Nf3 {[%clk 0:03:01]} 2...
d6 {[%clk 0:03:00.1]} 3. d4 {[%clk 0:03:01.2]} 3... cxd4 {[%clk 0:03:01]} 4.
Nxd4 {[%clk 0:03:01.8]} 4... Nf6 {[%clk 0:03:01.9]} 5. Nc3 {[%clk 0:03:02.4]}
5... g6 {[%clk 0:03:02.6]} 6. Be3 {[%clk 0:03:01.8]} 6... Bg7 {[%clk 0:03:03.3]}
7. f3 {[%clk 0:03:01.3]} 7... O-O {[%clk 0:03:04.1]} 8. Qd2 {[%clk 0:03:01.7]}
8... Nc6 {[%clk 0:03:04.8]} 9. O-O-O {[%clk 0:03:01.9]} 9... Bd7 {[%clk
0:03:05.4]} 10. g4 {[%clk 0:03:00.7]} 10... Rc8 {[%clk 0:03:05.6]} 11. Kb1
{[%clk 0:02:59.9]} 11... Ne5 {[%clk 0:03:06.1]} 12. h4 {[%clk 0:02:58.8]} 12...
Qa5 {[%clk 0:03:06.6]} 13. Nd5 {[%clk 0:02:52.5]} 13... Qxd2 {[%clk 0:03:05.5]}
14. Nxe7+ {[%clk 0:02:52]} 14... Kh8 {[%clk 0:03:06.1]} 15. Rxd2 {[%clk
0:02:48.4]} 15... Rce8 {[%clk 0:03:06.7]} 16. g5 {[%clk 0:02:36.9]} 16... Nxe4
{[%clk 0:03:04.6]} 17. Nxg6+ {[%clk 0:02:35.5]} 17... fxg6 {[%clk 0:03:05.5]}
18. fxe4 {[%clk 0:02:36.1]} 18... Ng4 {[%clk 0:03:05.8]} 19. Bh3 {[%clk
0:02:31.1]} 19... Rxe4 {[%clk 0:02:43.5]} 20. Bxg4 {[%clk 0:01:52.4]} 20... Bxg4
{[%clk 0:02:43.2]} 21. Bf2 {[%clk 0:01:52.8]} 21... Rxf2 {[%clk 0:02:38.3]} 22.
Rxf2 {[%clk 0:01:51]} 22... Rxd4 {[%clk 0:02:14]} 23. Re1 {[%clk 0:01:17.1]}
23... Be5 {[%clk 0:02:08]} 24. a3 {[%clk 0:01:14.9]} 24... Bf5 {[%clk
0:02:07.1]} 25. Ka2 {[%clk 0:01:11.5]} 25... Rxh4 {[%clk 0:02:05.9]} 26. Rd2
{[%clk 0:01:08.9]} 26... Kg7 {[%clk 0:01:59.4]} 27. b3 {[%clk 0:01:05.6]} 27...
Kf7 {[%clk 0:01:53.5]} 28. c4 {[%clk 0:01:05.7]} 28... Bc3 {[%clk 0:01:51.3]}
0-1

[Event "*** Titled Tuesday Blitz"]
[Site "Chess.com"]
[Date "2021.04.20"]
[Round "5"]
[White "Vandros57"]
[Black "LittleMyMoomin"]
[Result "1/2-1/2"]
[WhiteElo "2172"]
[BlackElo "1905"]
[TimeControl "180+1"]
[EndTime "10:52:09 PDT"]
[Termination "Game drawn by agreement"]

1. d4 {[%clk 0:03:00.9]} 1... Nf6 {[%clk 0:02:56.3]} 2. Nf3 {[%clk 0:02:59.2]}
2... e6 {[%clk 0:02:56.5]} 3. e3 {[%clk 0:02:58.4]} 3... d6 {[%clk 0:02:52.6]}
4. c4 {[%clk 0:02:53.8]} 4... b6 {[%clk 0:02:52.6]} 5. Nc3 {[%clk 0:02:51.6]}
5... Bb7 {[%clk 0:02:52.9]} 6. Be2 {[%clk 0:02:50.6]} 6... Nbd7 {[%clk
0:02:52.2]} 7. O-O {[%clk 0:02:50]} 7... g6 {[%clk 0:02:51.6]} 8. b3 {[%clk
0:02:49.3]} 8... Bg7 {[%clk 0:02:52]} 9. Bb2 {[%clk 0:02:48.7]} 9... O-O {[%clk
0:02:52.5]} 10. a4 {[%clk 0:02:45.3]} 10... Ne4 {[%clk 0:02:51.6]} 11. Nxe4
{[%clk 0:02:43.7]} 11... Bxe4 {[%clk 0:02:52.5]} 12. a5 {[%clk 0:02:40.3]} 12...
f5 {[%clk 0:02:49]} 13. axb6 {[%clk 0:02:31.2]} 13... axb6 {[%clk 0:02:47.6]}
14. Rxa8 {[%clk 0:02:30.1]} 14... Qxa8 {[%clk 0:02:48.5]} 15. Qa1 {[%clk
0:02:27.3]} 15... Nf6 {[%clk 0:02:22.7]} 16. Qxa8 {[%clk 0:02:20.8]} 16... Rxa8
{[%clk 0:02:22]} 17. Ra1 {[%clk 0:02:20.1]} 17... Rxa1+ {[%clk 0:02:21.2]} 18.
Bxa1 {[%clk 0:02:19.4]} 18... Bc2 {[%clk 0:02:21.5]} 19. Nd2 {[%clk 0:02:04.8]}
19... Ne4 {[%clk 0:02:19.3]} 20. Nxe4 {[%clk 0:02:02.4]} 20... fxe4 {[%clk
0:02:18.5]} 21. b4 {[%clk 0:01:59.8]} 21... c5 {[%clk 0:02:18.4]} 22. dxc5
{[%clk 0:01:30]} 22... dxc5 {[%clk 0:01:47.2]} 23. Bxg7 {[%clk 0:01:25.2]} 23...
Kxg7 {[%clk 0:01:48.1]} 24. bxc5 {[%clk 0:01:23.4]} 24... bxc5 {[%clk 0:01:49]}
25. f3 {[%clk 0:01:19.6]} 25... Kf6 {[%clk 0:01:41.7]} 26. Kf2 {[%clk
0:01:16.9]} 26... Ke5 {[%clk 0:01:41.2]} 27. f4+ {[%clk 0:01:14.3]} 27... Kd6
{[%clk 0:01:40.5]} 28. Ke1 {[%clk 0:01:12.5]} 28... Kc6 {[%clk 0:01:40.3]} 29.
Kd2 {[%clk 0:01:11.7]} 29... Ba4 {[%clk 0:01:38.5]} 30. Kc3 {[%clk 0:01:06.3]}
1/2-1/2

[Event "*** Titled Tuesday Blitz"]
[Site "Chess.com"]
[Date "2021.04.20"]
[Round "5"]
[White "eCztery"]
[Black "Omk124"]
[Result "1-0"]
[WhiteElo "2405"]
[BlackElo "2545"]
[TimeControl "180+1"]
[EndTime "10:52:29 PDT"]
[Termination "eCztery won by checkmate"]

1. e4 {[%clk 0:03:00.8]} 1... c5 {[%clk 0:02:58.8]} 2. Nf3 {[%clk 0:03:00.7]}
2... d6 {[%clk 0:02:58.6]} 3. d4 {[%clk 0:02:59.9]} 3... cxd4 {[%clk 0:02:58.3]}
4. Qxd4 {[%clk 0:03:00.8]} 4... a6 {[%clk 0:02:58.1]} 5. c4 {[%clk 0:02:59.4]}
5... Nc6 {[%clk 0:02:58.5]} 6. Qe3 {[%clk 0:02:59.7]} 6... g6 {[%clk 0:02:59.1]}
7. Nc3 {[%clk 0:02:59.3]} 7... Bg7 {[%clk 0:02:57.2]} 8. h3 {[%clk 0:02:58.4]}
8... Nf6 {[%clk 0:02:57]} 9. Be2 {[%clk 0:02:57.9]} 9... O-O {[%clk 0:02:56.5]}
10. O-O {[%clk 0:02:57.7]} 10... Be6 {[%clk 0:02:53.4]} 11. Rb1 {[%clk
0:02:57.9]} 11... Rc8 {[%clk 0:02:53.3]} 12. b3 {[%clk 0:02:58.4]} 12... Nd7
{[%clk 0:02:41.3]} 13. Bb2 {[%clk 0:02:58]} 13... Qa5 {[%clk 0:02:38.2]} 14. Nd5
{[%clk 0:02:34.5]} 14... Qxa2 {[%clk 0:02:18.7]} 15. Bxg7 {[%clk 0:01:28.1]}
15... Kxg7 {[%clk 0:02:19.6]} 16. Qc3+ {[%clk 0:01:17.9]} 16... f6 {[%clk
0:02:14.4]} 17. Ra1 {[%clk 0:01:13.6]} 17... Qxe2 {[%clk 0:02:07.9]} 18. Rfe1
{[%clk 0:01:13.7]} 18... Qxe1+ {[%clk 0:01:56.7]} 19. Rxe1 {[%clk 0:01:14.6]}
19... Kf7 {[%clk 0:01:42.2]} 20. Qe3 {[%clk 0:01:11]} 20... Kg7 {[%clk
0:01:39.6]} 21. Nd4 {[%clk 0:01:05.3]} 21... Nxd4 {[%clk 0:01:39.1]} 22. Qxd4
{[%clk 0:01:06.2]} 22... Kf7 {[%clk 0:01:34.6]} 23. Nf4 {[%clk 0:00:56.6]} 23...
Rc7 {[%clk 0:01:25.8]} 24. Nxe6 {[%clk 0:00:53.7]} 24... Kxe6 {[%clk 0:01:23.1]}
25. Qd5# {[%clk 0:00:52.4]} 1-0

[Event "*** Titled Tuesday Blitz"]
[Site "Chess.com"]
[Date "2021.04.20"]
[Round "5"]
[White "picturesquecheck"]
[Black "mamonika"]
[Result "1-0"]
[WhiteElo "2301"]
[BlackElo "2058"]
[TimeControl "180+1"]
[EndTime "10:52:35 PDT"]
[Termination "picturesquecheck won on time"]

1. e4 {[%clk 0:03:00.9]} 1... c5 {[%clk 0:02:54.6]} 2. a4 {[%clk 0:03:00.4]}
2... Nc6 {[%clk 0:02:41]} 3. Nf3 {[%clk 0:02:59.1]} 3... g6 {[%clk 0:02:38.2]}
4. Bb5 {[%clk 0:02:56.7]} 4... Bg7 {[%clk 0:02:28.4]} 5. Bxc6 {[%clk 0:02:56.1]}
5... bxc6 {[%clk 0:02:26.4]} 6. O-O {[%clk 0:02:57]} 6... d5 {[%clk 0:02:20.9]}
7. Re1 {[%clk 0:02:54]} 7... Qc7 {[%clk 0:01:25.4]} 8. Nc3 {[%clk 0:02:52.4]}
8... d4 {[%clk 0:01:21.6]} 9. Ne2 {[%clk 0:02:52.4]} 9... e5 {[%clk 0:01:21.4]}
10. d3 {[%clk 0:02:51.6]} 10... Bg4 {[%clk 0:01:21]} 11. Ng3 {[%clk 0:02:50.7]}
11... Ne7 {[%clk 0:01:10.7]} 12. h3 {[%clk 0:02:50.2]} 12... Be6 {[%clk
0:01:10.8]} 13. Ng5 {[%clk 0:02:47.7]} 13... Qd7 {[%clk 0:01:09.7]} 14. Nxe6
{[%clk 0:02:45.8]} 14... Qxe6 {[%clk 0:01:10.6]} 15. b3 {[%clk 0:02:46.1]} 15...
O-O {[%clk 0:01:06.8]} 16. Ba3 {[%clk 0:02:46.1]} 16... Qd6 {[%clk 0:01:00.4]}
17. Qd2 {[%clk 0:02:41.5]} 17... a5 {[%clk 0:00:50.8]} 18. Rf1 {[%clk
0:02:37.4]} 18... Nc8 {[%clk 0:00:25.1]} 19. Rae1 {[%clk 0:02:35]} 19... Nb6
{[%clk 0:00:22.6]} 20. Ne2 {[%clk 0:02:27.4]} 20... Nd7 {[%clk 0:00:17.4]} 21.
g3 {[%clk 0:02:25.1]} 21... Qe6 {[%clk 0:00:16.7]} 22. Kg2 {[%clk 0:02:23]}
22... f5 {[%clk 0:00:10.2]} 23. exf5 {[%clk 0:02:23.1]} 23... Qxf5 {[%clk
0:00:09]} 24. f4 {[%clk 0:02:22.5]} 24... e4 {[%clk 0:00:08.5]} 25. dxe4 {[%clk
0:02:17.2]} 25... Qxe4+ {[%clk 0:00:09.4]} 26. Kh2 {[%clk 0:02:17.1]} 26... Qd5
{[%clk 0:00:04.2]} 27. Nc1 {[%clk 0:02:14.3]} 27... Rfe8 {[%clk 0:00:03.7]} 28.
Qg2 {[%clk 0:02:11]} 1-0